[Event "Early-Titled-Tuesday-Blitz-June-18-2024"]
[Site "Chess.com"]
[Date "2024.06.18"]
[Round "7"]
[White "AlexanderKing"]
[Black "ReadySkate"]
[Result "1-0"]
[WhiteElo "2543"]
[BlackElo "2793"]
[TimeControl "180+1"]
[EndTime "9:18:22 PDT"]
[Termination "AlexanderKing won by resignation"]

1. e4 {[%clk 0:03:00]} 1... c5 {[%clk 0:02:58.7]} 2. c3 {[%clk 0:02:59.9]} 2...
d5 {[%clk 0:02:58.5]} 3. exd5 {[%clk 0:03:00]} 3... Qxd5 {[%clk 0:02:59.4]} 4.
d4 {[%clk 0:02:59.9]} 4... Nc6 {[%clk 0:02:59.3]} 5. Nf3 {[%clk 0:02:59.9]} 5...
Bf5 {[%clk 0:02:59.4]} 6. Be3 {[%clk 0:02:54.4]} 6... Nf6 {[%clk 0:02:58.9]} 7.
c4 {[%clk 0:02:48.7]} 7... Qd8 {[%clk 0:02:58.5]} 8. d5 {[%clk 0:02:33.1]} 8...
Nb4 {[%clk 0:02:57.3]} 9. Na3 {[%clk 0:02:18.1]} 9... e6 {[%clk 0:02:55.2]} 10.
Nh4 {[%clk 0:02:03.6]} 10... Bg4 {[%clk 0:02:45.4]} 11. Be2 {[%clk 0:01:40.7]}
11... Bxe2 {[%clk 0:02:40.2]} 12. Qxe2 {[%clk 0:01:41.6]} 12... Nfxd5 {[%clk
0:02:28.8]} 13. cxd5 {[%clk 0:01:34.3]} 13... Qxh4 {[%clk 0:02:28.4]} 14. Qb5+
{[%clk 0:01:22.9]} 14... Kd8 {[%clk 0:02:26]} 15. Qxb7 {[%clk 0:01:21.5]} 15...
Rc8 {[%clk 0:02:23.7]} 16. dxe6 {[%clk 0:01:14]} 16... fxe6 {[%clk 0:02:23.5]}
17. Rd1+ {[%clk 0:01:04.5]} 17... Nd5 {[%clk 0:02:22.3]} 18. O-O {[%clk
0:00:56.5]} 18... Bd6 {[%clk 0:02:20.9]} 19. g3 {[%clk 0:00:51.1]} 19... Qh3
{[%clk 0:02:19.6]} 20. Rxd5 {[%clk 0:00:38.6]} 20... exd5 {[%clk 0:02:16.2]} 21.
Bg5+ {[%clk 0:00:38.2]} 21... Ke8 {[%clk 0:02:15.7]} 22. Qxg7 {[%clk 0:00:36.3]}
22... Qe6 {[%clk 0:02:05.1]} 23. Qxh8+ {[%clk 0:00:31.8]} 23... Kd7 {[%clk
0:02:05.1]} 24. Qf6 {[%clk 0:00:27.1]} 24... Qe4 {[%clk 0:02:03.4]} 25. Nb5
{[%clk 0:00:24.1]} 25... Be7 {[%clk 0:01:59.5]} 26. Qxe7+ {[%clk 0:00:21.6]}
26... Qxe7 {[%clk 0:02:00.4]} 27. Bxe7 {[%clk 0:00:22.4]} 27... Kxe7 {[%clk
0:02:01.1]} 28. b3 {[%clk 0:00:15.3]} 28... a6 {[%clk 0:02:00.9]} 29. Nc3 {[%clk
0:00:13.3]} 29... Kd6 {[%clk 0:02:00.2]} 30. Rd1 {[%clk 0:00:13.3]} 30... d4
{[%clk 0:01:59.9]} 31. Ne4+ {[%clk 0:00:13.6]} 31... Kd5 {[%clk 0:02:00.2]} 32.
Nd2 {[%clk 0:00:14.5]} 32... Re8 {[%clk 0:01:59.4]} 33. Kf1 {[%clk 0:00:13.8]}
33... d3 {[%clk 0:01:57.5]} 34. Nf3 {[%clk 0:00:14.2]} 34... Ke4 {[%clk
0:01:54.3]} 35. Re1+ {[%clk 0:00:13.2]} 35... Kxf3 {[%clk 0:01:54.8]} 36. Rxe8
{[%clk 0:00:13.5]} 36... d2 {[%clk 0:01:55.7]} 37. Rd8 {[%clk 0:00:10.1]} 1-0

[Event "Early-Titled-Tuesday-Blitz-June-18-2024"]
[Site "Chess.com"]
[Date "2024.06.18"]
[Round "7"]
[White "Zq1"]
[Black "PapaieDudu"]
[Result "0-1"]
[WhiteElo "2491"]
[BlackElo "2351"]
[TimeControl "180+1"]
[EndTime "9:18:25 PDT"]
[Termination "PapaieDudu won by resignation"]

1. d4 {[%clk 0:03:00.9]} 1... d5 {[%clk 0:03:00.4]} 2. c4 {[%clk 0:03:00.8]}
2... e6 {[%clk 0:03:01.3]} 3. Nc3 {[%clk 0:03:00.2]} 3... Nf6 {[%clk 0:03:02]}
4. Nf3 {[%clk 0:02:59.7]} 4... a6 {[%clk 0:03:02.6]} 5. c5 {[%clk 0:02:57]} 5...
c6 {[%clk 0:02:59.8]} 6. Bf4 {[%clk 0:02:54.6]} 6... Nh5 {[%clk 0:02:52.2]} 7.
Bg5 {[%clk 0:02:53.1]} 7... f6 {[%clk 0:02:51.1]} 8. Bd2 {[%clk 0:02:48.6]} 8...
g5 {[%clk 0:02:50.4]} 9. e4 {[%clk 0:02:42.7]} 9... Ng7 {[%clk 0:02:40.5]} 10.
e5 {[%clk 0:02:38.2]} 10... h6 {[%clk 0:02:40.2]} 11. exf6 {[%clk 0:02:34.9]}
11... Qxf6 {[%clk 0:02:39.1]} 12. h3 {[%clk 0:02:24]} 12... Nd7 {[%clk 0:02:39]}
13. Be2 {[%clk 0:02:18.5]} 13... Nf5 {[%clk 0:02:38.8]} 14. O-O {[%clk
0:02:11.6]} 14... Bg7 {[%clk 0:02:36.3]} 15. Be3 {[%clk 0:02:04.1]} 15... O-O
{[%clk 0:02:35.5]} 16. Nh2 {[%clk 0:01:58]} 16... Nxd4 {[%clk 0:02:26.1]} 17.
Bh5 {[%clk 0:01:40.3]} 17... Nf5 {[%clk 0:02:25.8]} 18. Ng4 {[%clk 0:01:36]}
18... Qe7 {[%clk 0:02:26.2]} 19. Bd2 {[%clk 0:01:23.4]} 19... Nxc5 {[%clk
0:02:17.2]} 20. Re1 {[%clk 0:01:23.6]} 20... e5 {[%clk 0:02:16.4]} 21. Nxd5
{[%clk 0:01:10.2]} 21... cxd5 {[%clk 0:02:14.6]} 22. Bb4 {[%clk 0:01:10.1]}
22... Qd6 {[%clk 0:01:53.9]} 23. Rc1 {[%clk 0:01:07.2]} 23... b6 {[%clk
0:01:54.1]} 24. Qe2 {[%clk 0:00:53]} 24... Nd4 {[%clk 0:01:52.8]} 25. Qe3 {[%clk
0:00:47.9]} 25... Bxg4 {[%clk 0:01:47.5]} 26. hxg4 {[%clk 0:00:41.9]} 26... a5
{[%clk 0:01:42.9]} 27. Ba3 {[%clk 0:00:40.2]} 27... Rf4 {[%clk 0:01:37.8]} 28.
g3 {[%clk 0:00:37.3]} 28... Rf3 {[%clk 0:01:33.5]} 29. Qd2 {[%clk 0:00:30.8]}
29... Rxg3+ {[%clk 0:01:30.2]} 30. Kf1 {[%clk 0:00:19.7]} 30... Rg1+ {[%clk
0:01:29.7]} 0-1

[Event "Early-Titled-Tuesday-Blitz-June-18-2024"]
[Site "Chess.com"]
[Date "2024.06.18"]
[Round "7"]
[White "Alphafischer2019"]
[Black "Eliwood44"]
[Result "1-0"]
[WhiteElo "2633"]
[BlackElo "2475"]
[TimeControl "180+1"]
[EndTime "9:18:34 PDT"]
[Termination "Alphafischer2019 won by resignation"]

1. Nf3 {[%clk 0:03:00.9]} 1... d5 {[%clk 0:02:58.8]} 2. g3 {[%clk 0:02:56]} 2...
Nf6 {[%clk 0:02:58.5]} 3. Bg2 {[%clk 0:02:55.7]} 3... g6 {[%clk 0:02:56.7]} 4.
c4 {[%clk 0:02:54.4]} 4... c6 {[%clk 0:02:56.2]} 5. b3 {[%clk 0:02:53.5]} 5...
Bg7 {[%clk 0:02:55.9]} 6. Bb2 {[%clk 0:02:53.2]} 6... O-O {[%clk 0:02:56.3]} 7.
O-O {[%clk 0:02:51.4]} 7... Na6 {[%clk 0:02:52.3]} 8. d4 {[%clk 0:02:50.8]} 8...
Bf5 {[%clk 0:02:50.8]} 9. Nc3 {[%clk 0:02:49.3]} 9... Ne4 {[%clk 0:02:50.4]} 10.
Ne5 {[%clk 0:02:47.5]} 10... Nxc3 {[%clk 0:02:48.9]} 11. Bxc3 {[%clk 0:02:47.2]}
11... Be6 {[%clk 0:02:46]} 12. Re1 {[%clk 0:02:44.5]} 12... Bxe5 {[%clk
0:02:45.2]} 13. dxe5 {[%clk 0:02:43.4]} 13... dxc4 {[%clk 0:02:45.6]} 14. bxc4
{[%clk 0:02:33.6]} 14... Bxc4 {[%clk 0:02:45.1]} 15. Qb1 {[%clk 0:02:20.1]}
15... Rb8 {[%clk 0:02:39.7]} 16. h4 {[%clk 0:02:02.6]} 16... Be6 {[%clk
0:02:35.2]} 17. h5 {[%clk 0:02:00.6]} 17... Nc7 {[%clk 0:02:28.6]} 18. Qc1
{[%clk 0:01:56.6]} 18... Nd5 {[%clk 0:02:25.7]} 19. Bd2 {[%clk 0:01:49.6]} 19...
Kh8 {[%clk 0:02:19.2]} 20. Bh6 {[%clk 0:01:48.1]} 20... Rg8 {[%clk 0:02:18.7]}
21. e4 {[%clk 0:01:43.8]} 21... Nb4 {[%clk 0:02:10.8]} 22. Rd1 {[%clk 0:01:41]}
22... Qc8 {[%clk 0:02:04.7]} 23. Qc5 {[%clk 0:01:37]} 23... gxh5 {[%clk
0:01:32.2]} 24. Qxb4 {[%clk 0:01:25.8]} 24... Rg6 {[%clk 0:01:32]} 25. Bf4
{[%clk 0:01:21.8]} 25... h4 {[%clk 0:01:32]} 26. Qxe7 {[%clk 0:01:21.2]} 26...
hxg3 {[%clk 0:01:31.6]} 27. Bxg3 {[%clk 0:01:20.5]} 27... Qg8 {[%clk 0:01:29]}
28. Rd6 {[%clk 0:01:14.8]} 28... Qg7 {[%clk 0:01:25.1]} 29. Rad1 {[%clk
0:01:13.8]} 29... Rg8 {[%clk 0:01:25.1]} 30. Rd8 {[%clk 0:01:13.4]} 30... Qh6
{[%clk 0:01:23.9]} 31. Rxg8+ {[%clk 0:01:13]} 31... Rxg8 {[%clk 0:01:24.8]} 32.
Rd8 {[%clk 0:01:02.6]} 32... Qc1+ {[%clk 0:01:22.5]} 33. Bf1 {[%clk 0:01:02.4]}
33... Rxd8 {[%clk 0:01:07.6]} 34. Qxd8+ {[%clk 0:01:03.3]} 34... Kg7 {[%clk
0:01:07.7]} 35. Qf6+ {[%clk 0:01:01.7]} 35... Kg8 {[%clk 0:01:07.9]} 36. Bf4
{[%clk 0:01:01.7]} 36... Qd1 {[%clk 0:01:03.5]} 37. Qd8+ {[%clk 0:00:58.3]}
37... Kg7 {[%clk 0:01:03.4]} 38. Qxd1 {[%clk 0:00:56.6]} 1-0

[Event "Early-Titled-Tuesday-Blitz-June-18-2024"]
[Site "Chess.com"]
[Date "2024.06.18"]
[Round "7"]
[White "Mikasinski"]
[Black "DanyKopy"]
[Result "1-0"]
[WhiteElo "2717"]
[BlackElo "2568"]
[TimeControl "180+1"]
[EndTime "9:18:38 PDT"]
[Termination "Mikasinski won by resignation"]

1. e4 {[%clk 0:03:00.9]} 1... c5 {[%clk 0:02:54.7]} 2. Nf3 {[%clk 0:02:59.9]}
2... Nc6 {[%clk 0:02:54.8]} 3. d4 {[%clk 0:03:00.3]} 3... cxd4 {[%clk 0:02:55]}
4. Nxd4 {[%clk 0:03:00.9]} 4... e5 {[%clk 0:02:55.6]} 5. Nb5 {[%clk 0:02:59.8]}
5... d6 {[%clk 0:02:56.1]} 6. a4 {[%clk 0:02:58.7]} 6... Be6 {[%clk 0:02:49.7]}
7. N1a3 {[%clk 0:02:57.5]} 7... a6 {[%clk 0:02:47.6]} 8. Nc3 {[%clk 0:02:56.7]}
8... Rc8 {[%clk 0:02:47.6]} 9. Nd5 {[%clk 0:02:49.4]} 9... Bxd5 {[%clk
0:02:27.3]} 10. exd5 {[%clk 0:02:48.6]} 10... Nce7 {[%clk 0:02:27.4]} 11. c4
{[%clk 0:02:47.3]} 11... f5 {[%clk 0:02:26.7]} 12. Be2 {[%clk 0:02:40.7]} 12...
Nf6 {[%clk 0:02:25.7]} 13. O-O {[%clk 0:02:34.4]} 13... g6 {[%clk 0:02:24.9]}
14. b4 {[%clk 0:02:29.5]} 14... Bg7 {[%clk 0:02:21.6]} 15. c5 {[%clk 0:02:16.1]}
15... dxc5 {[%clk 0:02:01]} 16. d6 {[%clk 0:02:14.7]} 16... Ned5 {[%clk
0:02:00.5]} 17. bxc5 {[%clk 0:02:12.7]} 17... Nc3 {[%clk 0:01:53.9]} 18. Qe1
{[%clk 0:02:10.7]} 18... Nxe2+ {[%clk 0:01:53.9]} 19. Qxe2 {[%clk 0:02:11]}
19... Rxc5 {[%clk 0:01:53.9]} 20. Be3 {[%clk 0:02:07.7]} 20... Rd5 {[%clk
0:01:52.6]} 21. Nc4 {[%clk 0:02:03.2]} 21... O-O {[%clk 0:01:51.7]} 22. a5
{[%clk 0:01:58.6]} 22... Ne4 {[%clk 0:01:46]} 23. Bb6 {[%clk 0:01:43.4]} 23...
Qd7 {[%clk 0:01:41.9]} 24. Bc7 {[%clk 0:01:42.4]} 24... Nc3 {[%clk 0:01:22.7]}
25. Qb2 {[%clk 0:01:34]} 25... e4 {[%clk 0:01:11.6]} 26. Nb6 {[%clk 0:01:33.7]}
26... Qf7 {[%clk 0:00:47.8]} 27. Rac1 {[%clk 0:01:24.6]} 27... Nb5 {[%clk
0:00:33.5]} 28. Qb4 {[%clk 0:01:08.6]} 28... Rd4 {[%clk 0:00:23.3]} 29. Qc5
{[%clk 0:01:07.3]} 29... Qd7 {[%clk 0:00:22.7]} 30. Nxd7 {[%clk 0:01:06]} 1-0

[Event "Early-Titled-Tuesday-Blitz-June-18-2024"]
[Site "Chess.com"]
[Date "2024.06.18"]
[Round "7"]
[White "Nadtkins"]
[Black "Niteshch"]
[Result "0-1"]
[WhiteElo "2537"]
[BlackElo "2371"]
[TimeControl "180+1"]
[EndTime "9:18:42 PDT"]
[Termination "Niteshch won on time"]

1. e4 {[%clk 0:03:00.9]} 1... c5 {[%clk 0:02:58.1]} 2. Ne2 {[%clk 0:03:01.3]}
2... Nc6 {[%clk 0:02:56.6]} 3. g3 {[%clk 0:03:01.7]} 3... g6 {[%clk 0:02:56.6]}
4. Bg2 {[%clk 0:03:01.6]} 4... Bg7 {[%clk 0:02:57.1]} 5. O-O {[%clk 0:03:01.5]}
5... e6 {[%clk 0:02:57.6]} 6. c3 {[%clk 0:03:01.2]} 6... Nge7 {[%clk 0:02:57.2]}
7. d4 {[%clk 0:03:01.4]} 7... cxd4 {[%clk 0:02:57.3]} 8. cxd4 {[%clk 0:03:02.3]}
8... d5 {[%clk 0:02:55.1]} 9. e5 {[%clk 0:03:02.3]} 9... O-O {[%clk 0:02:55]}
10. h4 {[%clk 0:03:01.9]} 10... f6 {[%clk 0:02:51.8]} 11. exf6 {[%clk
0:02:55.4]} 11... Bxf6 {[%clk 0:02:51.5]} 12. Na3 {[%clk 0:02:35.6]} 12... Qb6
{[%clk 0:02:48.3]} 13. Nc2 {[%clk 0:02:28.5]} 13... Nf5 {[%clk 0:02:48.3]} 14.
a4 {[%clk 0:02:07.7]} 14... Nfxd4 {[%clk 0:02:45.3]} 15. Nexd4 {[%clk
0:02:03.1]} 15... Bxd4 {[%clk 0:02:36.2]} 16. Nxd4 {[%clk 0:01:51]} 16... Qxd4
{[%clk 0:02:33.9]} 17. Qb3 {[%clk 0:01:40.9]} 17... b6 {[%clk 0:02:24.8]} 18.
Bh6 {[%clk 0:01:38.8]} 18... Re8 {[%clk 0:02:20]} 19. Rad1 {[%clk 0:01:12.6]}
19... Qf6 {[%clk 0:02:13.6]} 20. Bg5 {[%clk 0:01:05.2]} 20... Qf7 {[%clk
0:02:13.5]} 21. Rfe1 {[%clk 0:01:00.6]} 21... Ba6 {[%clk 0:02:10.7]} 22. Rxd5
{[%clk 0:00:31.9]} 22... Na5 {[%clk 0:01:50.1]} 23. Qd1 {[%clk 0:00:08.6]} 23...
exd5 {[%clk 0:01:44.6]} 24. Rxe8+ {[%clk 0:00:06.3]} 24... Rxe8 {[%clk
0:01:38.8]} 25. Bxd5 {[%clk 0:00:06.9]} 25... Re6 {[%clk 0:01:28.7]} 26. Bxe6
{[%clk 0:00:03.7]} 26... Qxe6 {[%clk 0:01:28.7]} 27. Qd8+ {[%clk 0:00:04.3]}
27... Kg7 {[%clk 0:01:25.9]} 28. Qc7+ {[%clk 0:00:04.6]} 28... Qf7 {[%clk
0:01:24.9]} 29. Bh6+ {[%clk 0:00:05.1]} 29... Kf6 {[%clk 0:01:22.9]} 30. Bg5+
{[%clk 0:00:01.5]} 30... Ke6 {[%clk 0:01:22.6]} 0-1

[Event "Early-Titled-Tuesday-Blitz-June-18-2024"]
[Site "Chess.com"]
[Date "2024.06.18"]
[Round "7"]
[White "SirStrateg"]
[Black "klimkoj"]
[Result "0-1"]
[WhiteElo "2708"]
[BlackElo "2904"]
[TimeControl "180+1"]
[EndTime "9:18:49 PDT"]
[Termination "klimkoj won by resignation"]

1. d4 {[%clk 0:03:00.9]} 1... Nf6 {[%clk 0:02:59.5]} 2. Bg5 {[%clk 0:03:00.5]}
2... e6 {[%clk 0:02:59.3]} 3. Nd2 {[%clk 0:03:00]} 3... d5 {[%clk 0:02:59.3]} 4.
Ngf3 {[%clk 0:03:00.3]} 4... c5 {[%clk 0:02:59.5]} 5. e3 {[%clk 0:03:00.2]} 5...
Nc6 {[%clk 0:02:58.9]} 6. c3 {[%clk 0:03:00.4]} 6... h6 {[%clk 0:02:57.1]} 7.
Bh4 {[%clk 0:03:00.3]} 7... Be7 {[%clk 0:02:57.3]} 8. Bd3 {[%clk 0:03:00.2]}
8... O-O {[%clk 0:02:56.6]} 9. O-O {[%clk 0:03:00.3]} 9... b6 {[%clk 0:02:56.7]}
10. a4 {[%clk 0:02:53.4]} 10... Bb7 {[%clk 0:02:56.8]} 11. Qb1 {[%clk
0:02:48.3]} 11... Rc8 {[%clk 0:02:54.4]} 12. Re1 {[%clk 0:02:45.6]} 12... Qc7
{[%clk 0:02:46.8]} 13. h3 {[%clk 0:02:40.5]} 13... e5 {[%clk 0:02:38.4]} 14. Bb5
{[%clk 0:02:28.8]} 14... e4 {[%clk 0:02:29.4]} 15. Bg3 {[%clk 0:02:18.6]} 15...
Bd6 {[%clk 0:02:22.7]} 16. Bxd6 {[%clk 0:02:15.5]} 16... Qxd6 {[%clk 0:02:23.6]}
17. Bxc6 {[%clk 0:02:10]} 17... Bxc6 {[%clk 0:02:22]} 18. Nh2 {[%clk 0:02:04]}
18... Bd7 {[%clk 0:02:15.1]} 19. a5 {[%clk 0:01:58.3]} 19... cxd4 {[%clk
0:02:01.6]} 20. cxd4 {[%clk 0:01:58.2]} 20... Qb4 {[%clk 0:01:57.8]} 21. Nhf1
{[%clk 0:01:51.5]} 21... bxa5 {[%clk 0:01:57.4]} 22. Rc1 {[%clk 0:01:43.7]}
22... Bb5 {[%clk 0:01:46.8]} 23. Qa2 {[%clk 0:01:26.7]} 23... a4 {[%clk
0:01:43.8]} 24. Qa3 {[%clk 0:01:23]} 24... a5 {[%clk 0:01:36.1]} 25. Rc3 {[%clk
0:01:15.4]} 25... Rxc3 {[%clk 0:01:31.4]} 26. bxc3 {[%clk 0:01:14.7]} 26... Qxa3
{[%clk 0:01:31.4]} 27. Rxa3 {[%clk 0:01:14.7]} 27... Rc8 {[%clk 0:01:32.3]} 28.
Nb1 {[%clk 0:00:58.6]} 28... Ne8 {[%clk 0:01:26.1]} 29. Nfd2 {[%clk 0:00:58.3]}
29... Nd6 {[%clk 0:01:21.3]} 30. Ra2 {[%clk 0:00:45.4]} 30... f5 {[%clk
0:01:19]} 31. f4 {[%clk 0:00:39.5]} 31... g5 {[%clk 0:01:17.8]} 32. g3 {[%clk
0:00:40]} 32... Kf7 {[%clk 0:01:18.1]} 33. Kf2 {[%clk 0:00:40.5]} 33... Ke6
{[%clk 0:01:18.1]} 34. Rb2 {[%clk 0:00:38.2]} 34... Bd3 {[%clk 0:01:12.5]} 35.
Ra2 {[%clk 0:00:38.3]} 35... Rb8 {[%clk 0:01:11.3]} 36. Rxa4 {[%clk 0:00:34.5]}
36... Bxb1 {[%clk 0:01:11]} 37. Rxa5 {[%clk 0:00:32.6]} 37... Rb2 {[%clk
0:01:10.7]} 38. Ke1 {[%clk 0:00:32.8]} 38... Rxd2 {[%clk 0:01:11]} 39. Kxd2
{[%clk 0:00:31.8]} 39... Nc4+ {[%clk 0:01:11]} 0-1

[Event "Early-Titled-Tuesday-Blitz-June-18-2024"]
[Site "Chess.com"]
[Date "2024.06.18"]
[Round "7"]
[White "Lestofante90"]
[Black "Meri-Arabidze"]
[Result "1-0"]
[WhiteElo "2962"]
[BlackElo "2668"]
[TimeControl "180+1"]
[EndTime "9:18:55 PDT"]
[Termination "Lestofante90 won by resignation"]

1. d4 {[%clk 0:02:57.7]} 1... Nf6 {[%clk 0:02:59.8]} 2. c4 {[%clk 0:02:56]} 2...
e6 {[%clk 0:03:00.1]} 3. Nf3 {[%clk 0:02:55.8]} 3... Bb4+ {[%clk 0:03:00.2]} 4.
Nc3 {[%clk 0:02:51.3]} 4... b6 {[%clk 0:02:57.2]} 5. e3 {[%clk 0:02:48]} 5...
Bb7 {[%clk 0:02:55.9]} 6. Bd3 {[%clk 0:02:48.4]} 6... Ne4 {[%clk 0:02:55.1]} 7.
Qc2 {[%clk 0:02:43.8]} 7... f5 {[%clk 0:02:54]} 8. O-O {[%clk 0:02:33.8]} 8...
Nxc3 {[%clk 0:02:42.3]} 9. bxc3 {[%clk 0:02:33.5]} 9... Bxf3 {[%clk 0:02:42.9]}
10. gxf3 {[%clk 0:02:33.3]} 10... Bd6 {[%clk 0:02:38]} 11. e4 {[%clk 0:02:07.5]}
11... Qh4 {[%clk 0:02:15.7]} 12. e5 {[%clk 0:02:02.2]} 12... Be7 {[%clk
0:02:15.9]} 13. Kh1 {[%clk 0:01:46.7]} 13... Bg5 {[%clk 0:02:06.7]} 14. Rg1
{[%clk 0:01:35.2]} 14... Bxc1 {[%clk 0:02:05.6]} 15. Qxc1 {[%clk 0:01:31.6]}
15... O-O {[%clk 0:02:02.8]} 16. Qe3 {[%clk 0:01:28.3]} 16... Nc6 {[%clk
0:01:56.2]} 17. f4 {[%clk 0:01:28.1]} 17... Ne7 {[%clk 0:01:54.1]} 18. Rg3
{[%clk 0:01:18.8]} 18... Ng6 {[%clk 0:01:53.9]} 19. Rag1 {[%clk 0:01:18.2]}
19... Rf7 {[%clk 0:01:46.1]} 20. Rf3 {[%clk 0:01:10.2]} 20... c6 {[%clk
0:01:39.7]} 21. a4 {[%clk 0:01:00.5]} 21... Kh8 {[%clk 0:01:34.2]} 22. Rxg6
{[%clk 0:00:53]} 22... hxg6 {[%clk 0:01:21.8]} 23. Rh3 {[%clk 0:00:52.6]} 23...
Qxh3 {[%clk 0:01:22]} 24. Qxh3+ {[%clk 0:00:52.3]} 24... Kg8 {[%clk 0:01:22.9]}
25. d5 {[%clk 0:00:51.4]} 25... cxd5 {[%clk 0:01:21.7]} 26. cxd5 {[%clk
0:00:52.3]} 26... Rc8 {[%clk 0:01:21.6]} 27. c4 {[%clk 0:00:51.6]} 27... exd5
{[%clk 0:01:19.3]} 28. cxd5 {[%clk 0:00:50.5]} 28... Rc3 {[%clk 0:01:19.2]} 29.
Qe3 {[%clk 0:00:43.9]} 29... Ra3 {[%clk 0:01:19.2]} 30. Qd4 {[%clk 0:00:43.3]}
30... Rf8 {[%clk 0:01:14.3]} 31. e6 {[%clk 0:00:37]} 31... dxe6 {[%clk
0:01:14.3]} 32. dxe6 {[%clk 0:00:37.3]} 32... Kh7 {[%clk 0:01:07.6]} 33. Bb5
{[%clk 0:00:26.5]} 33... a6 {[%clk 0:00:57.1]} 34. e7 {[%clk 0:00:26.4]} 1-0

[Event "Early-Titled-Tuesday-Blitz-June-18-2024"]
[Site "Chess.com"]
[Date "2024.06.18"]
[Round "7"]
[White "ninguno46"]
[Black "Bkmzzzzz"]
[Result "0-1"]
[WhiteElo "2547"]
[BlackElo "2405"]
[TimeControl "180+1"]
[EndTime "9:18:55 PDT"]
[Termination "Bkmzzzzz won by resignation"]

1. e4 {[%clk 0:03:00.9]} 1... d6 {[%clk 0:03:00.1]} 2. d4 {[%clk 0:03:00]} 2...
Nf6 {[%clk 0:03:00.6]} 3. f3 {[%clk 0:03:00.4]} 3... e5 {[%clk 0:03:00.4]} 4.
dxe5 {[%clk 0:02:57.9]} 4... dxe5 {[%clk 0:03:01.3]} 5. Qxd8+ {[%clk 0:02:57.7]}
5... Kxd8 {[%clk 0:03:02.2]} 6. Bc4 {[%clk 0:02:57.5]} 6... Be6 {[%clk
0:03:01.7]} 7. Bxe6 {[%clk 0:02:57.5]} 7... fxe6 {[%clk 0:03:02.6]} 8. Be3
{[%clk 0:02:57.6]} 8... Bd6 {[%clk 0:03:02.5]} 9. Nd2 {[%clk 0:02:58]} 9... Ke7
{[%clk 0:03:02.9]} 10. O-O-O {[%clk 0:02:58]} 10... Nc6 {[%clk 0:03:03.2]} 11.
Nc4 {[%clk 0:02:56.6]} 11... a6 {[%clk 0:03:03.2]} 12. Nh3 {[%clk 0:02:53.7]}
12... b5 {[%clk 0:03:00.4]} 13. Nd2 {[%clk 0:02:53.2]} 13... h6 {[%clk
0:02:47.9]} 14. Nf2 {[%clk 0:02:52.7]} 14... Rab8 {[%clk 0:02:38]} 15. Nd3
{[%clk 0:02:52.2]} 15... Nd7 {[%clk 0:02:36.7]} 16. h4 {[%clk 0:02:47.1]} 16...
Nd4 {[%clk 0:02:34.3]} 17. Rde1 {[%clk 0:02:38.1]} 17... c5 {[%clk 0:02:29.2]}
18. c3 {[%clk 0:02:37.6]} 18... Nc6 {[%clk 0:02:28.4]} 19. c4 {[%clk 0:02:31.1]}
19... Nd4 {[%clk 0:02:23.8]} 20. b3 {[%clk 0:02:25.5]} 20... Bc7 {[%clk
0:02:13.7]} 21. Bxd4 {[%clk 0:01:52.3]} 21... exd4 {[%clk 0:02:06.5]} 22. Kc2
{[%clk 0:01:36.7]} 22... Rhc8 {[%clk 0:01:58.5]} 23. e5 {[%clk 0:01:31.1]} 23...
Ba5 {[%clk 0:01:51.6]} 24. Rc1 {[%clk 0:00:50.1]} 24... Nb6 {[%clk 0:01:30.6]}
25. Rh3 {[%clk 0:00:48.8]} 25... Bxd2 {[%clk 0:01:13.2]} 26. Kxd2 {[%clk
0:00:48.2]} 26... bxc4 {[%clk 0:01:13.8]} 27. bxc4 {[%clk 0:00:48.5]} 27... Na4
{[%clk 0:01:10.6]} 28. Rg3 {[%clk 0:00:46.9]} 28... Kf7 {[%clk 0:01:10.4]} 29.
h5 {[%clk 0:00:46.3]} 29... Nc3 {[%clk 0:01:07.2]} 30. f4 {[%clk 0:00:36.2]}
30... Ne4+ {[%clk 0:01:07]} 31. Ke2 {[%clk 0:00:35.4]} 31... Nxg3+ {[%clk
0:01:07.9]} 32. Kf3 {[%clk 0:00:35.1]} 32... Nf5 {[%clk 0:01:03.7]} 33. g4
{[%clk 0:00:35.3]} 33... Ne3 {[%clk 0:01:02.9]} 34. Ke4 {[%clk 0:00:36.2]} 34...
Nxg4 {[%clk 0:00:59.6]} 35. Rg1 {[%clk 0:00:34.8]} 35... Ne3 {[%clk 0:00:58.9]}
36. Rg6 {[%clk 0:00:33]} 36... Nxc4 {[%clk 0:00:54.1]} 0-1

[Event "Early-Titled-Tuesday-Blitz-June-18-2024"]
[Site "Chess.com"]
[Date "2024.06.18"]
[Round "7"]
[White "Sek_Konstantin"]
[Black "chess_peak"]
[Result "0-1"]
[WhiteElo "2711"]
[BlackElo "2532"]
[TimeControl "180+1"]
[EndTime "9:18:56 PDT"]
[Termination "chess_peak won by resignation"]

1. e4 {[%clk 0:03:00.9]} 1... c5 {[%clk 0:02:57.7]} 2. Nf3 {[%clk 0:03:00.3]}
2... Nc6 {[%clk 0:02:56.2]} 3. Nc3 {[%clk 0:02:59.1]} 3... d6 {[%clk 0:02:53.6]}
4. d4 {[%clk 0:02:57.9]} 4... cxd4 {[%clk 0:02:53.9]} 5. Nxd4 {[%clk 0:02:58.2]}
5... Nf6 {[%clk 0:02:54.6]} 6. Bc4 {[%clk 0:02:57.7]} 6... Qb6 {[%clk 0:02:54]}
7. Nb3 {[%clk 0:02:56.3]} 7... e6 {[%clk 0:02:52.7]} 8. Be3 {[%clk 0:02:55.8]}
8... Qc7 {[%clk 0:02:47.5]} 9. f4 {[%clk 0:02:55.2]} 9... a6 {[%clk 0:02:47.3]}
10. Qe2 {[%clk 0:02:53.8]} 10... Be7 {[%clk 0:02:44.8]} 11. O-O-O {[%clk
0:02:51.6]} 11... b5 {[%clk 0:02:42.1]} 12. Bd3 {[%clk 0:02:50.9]} 12... Nb4
{[%clk 0:02:36.9]} 13. Kb1 {[%clk 0:02:50.1]} 13... Bb7 {[%clk 0:02:33.7]} 14.
g4 {[%clk 0:02:47.3]} 14... d5 {[%clk 0:01:36.3]} 15. e5 {[%clk 0:02:43.8]}
15... Ne4 {[%clk 0:01:36.6]} 16. Bxe4 {[%clk 0:02:40.3]} 16... dxe4 {[%clk
0:01:37]} 17. f5 {[%clk 0:02:38.7]} 17... exf5 {[%clk 0:01:26.8]} 18. gxf5
{[%clk 0:02:37.5]} 18... Qxe5 {[%clk 0:01:27.2]} 19. Bd4 {[%clk 0:02:36.3]}
19... Qxf5 {[%clk 0:01:27]} 20. Rhf1 {[%clk 0:02:35.6]} 20... Qe6 {[%clk
0:01:21.5]} 21. Bxg7 {[%clk 0:02:34]} 21... Rg8 {[%clk 0:01:21.7]} 22. Bd4
{[%clk 0:02:18.9]} 22... O-O-O {[%clk 0:01:20.1]} 23. a4 {[%clk 0:02:01.7]}
23... bxa4 {[%clk 0:01:14]} 24. Nxa4 {[%clk 0:02:00.3]} 24... Bd5 {[%clk
0:00:55.8]} 25. Nb6+ {[%clk 0:01:54]} 25... Kb7 {[%clk 0:00:55.8]} 26. c4 {[%clk
0:01:47.6]} 26... Bc6 {[%clk 0:00:49.6]} 27. Na5+ {[%clk 0:01:46.6]} 27... Kb8
{[%clk 0:00:49.7]} 28. Qh5 {[%clk 0:01:38.9]} 28... Rg5 {[%clk 0:00:23.4]} 29.
Qxf7 {[%clk 0:01:17.7]} 29... Qxf7 {[%clk 0:00:22.8]} 30. Rxf7 {[%clk
0:01:18.3]} 30... Rxd4 {[%clk 0:00:23.3]} 31. Rdf1 {[%clk 0:01:09.5]} 31... Rxa5
{[%clk 0:00:22.3]} 32. Rxe7 {[%clk 0:01:09.1]} 32... Rd8 {[%clk 0:00:21.3]} 33.
Rxh7 {[%clk 0:01:03.1]} 33... Re5 {[%clk 0:00:19.9]} 0-1